Workbook

Sheet Sheet1
A1: ISBN | B1: 产品名称 | C1: 定价 | D1: 版别 | E1: 副本数 | F1: 码洋
A2: 978-7-208-12302-1/K.2226 | B2: 上下五千年(彩图珍藏版) | C2: 198 | D2: 上海人民出版社 | E2: 5 | F2: =C2*E2 -> 990
A3: 978-7-208-15091-1/K.2729 | B3: 中华文明的开端--夏(细讲中国历史丛书) | C3: 68 | D3: 上海人民出版社 | E3: 5 | F3: 340
A4: 978-7-208-15118-5/K.2739 | B4: 镌刻在甲骨上的史诗--殷商(细讲中国历史丛书) | C4: 68 | D4: 上海人民出版社 | E4: 5 | F4: 340
A5: 978-7-208-15100-0/K.2733 | B5: 封邦建国的礼乐世界--西周(细讲中国历史丛书) | C5: 68 | D5: 上海人民出版社 | E5: 5 | F5: 340
A6: 978-7-208-15088-1/K.2726 | B6: 大国争霸与士的崛起--春秋(细讲中国历史丛书) | C6: 68 | D6: 上海人民出版社 | E6: 5 | F6: 340
A7: 978-7-208-15119-2/K.2740 | B7: 百家争鸣的大变革时代--战国(细讲中国历史丛书) | C7: 68 | D7: 上海人民出版社 | E7: 5 | F7: 340
A8: 978-7-208-15102-4/K.2735 | B8: 大一统王朝的确立--秦汉(细讲中国历史丛书) | C8: 68 | D8: 上海人民出版社 | E8: 5 | F8: 340
A9: 978-7-208-15089-8/K.2727 | B9: 碰撞中的民族大融合--魏晋南北朝(细讲中国历史丛书) | C9: 68 | D9: 上海人民出版社 | E9: 5 | F9: 340
A10: 978-7-208-15108-6/K.2737 | B10: 灿烂辉煌的开放世界--隋唐五代(细讲中国历史丛书) | C10: 68 | D10: 上海人民出版社 | E10: 5 | F10: 340
A11: 978-7-208-15090-4/K.2728 | B11: 士大夫的理想时代--宋(细讲中国历史丛书) | C11: 68 | D11: 上海人民出版社 | E11: 5 | F11: 340
A12: 978-7-208-15101-7/K.2734 | B12: 从游牧部落到世界性帝国--元(细讲中国历史丛书) | C12: 68 | D12: 上海人民出版社 | E12: 5 | F12: 340
A13: 978-7-208-15098-0/K.2731 | B13: 沉暮与新生--明(细讲中国历史丛书) | C13: 68 | D13: 上海人民出版社 | E13: 5 | F13: 340
A14: 978-7-208-15099-7/K.2732 | B14: 从康乾盛世到惊天巨变--清(细讲中国历史丛书) | C14: 68 | D14: 上海人民出版社 | E14: 5 | F14: 340
A15: 978-7-208-15320-2/B.1350 | B15: 中华传统美学精神 | C15: 65 | D15: 上海人民出版社 | E15: 3 | F15: 195
A16: 978-7-208-15323-3/D.3251 | B16: 小记者访百国外交官(第二辑)(百变践行家) | C16: 60 | D16: 上海人民出版社 | E16: 3 | F16: 180
A17: 978-7-208-14798-0/G.1870 | B17: 我的教育信条--杜威论教育(世界教育名著译丛) | C17: 58 | D17: 上海人民出版社 | E17: 3 | F17: 174
A18: 978-7-208-15343-1/J.512 | B18: 送给妈妈的礼物 | C18: 48 | D18: 上海人民出版社 | E18: 3 | F18: =C18*E18 -> 144
A19: 978-7-208-13440-9/G.1764 | B19: 家庭教育与父母教育 | C19: 48 | D19: 上海人民出版社 | E19: 3 | F19: 144
A20: 978-7-208-14263-3/G.1830 | B20: 爱的教育(全译本)(世界教育名著译丛) | C20: 48 | D20: 上海人民出版社 | E20: 3 | F20: 144
A21: 978-7-208-13890-2/G.1807 | B21: 论儿童教育(世界教育名著译丛) | C21: 48 | D21: 上海人民出版社 | E21: 3 | F21: 144
A22: 978-7-208-12102-7/G.1657 | B22: 儿童的人格教育(世界教育名著译丛) | C22: 48 | D22: 上海人民出版社 | E22: 3 | F22: 144
A23: 978-7-208-13660-1/G.1784 | B23: 童年的秘密(第三版)(世界教育名著译丛) | C23: 45 | D23: 上海人民出版社 | E23: 3 | F23: 135
A24: 978-7-208-13661-8/G.1785 | B24: 家庭和儿童教育(第三版)(世界教育名著译丛) | C24: 42 | D24: 上海人民出版社 | E24: 3 | F24: 126
A25: 978-7-208-15213-7/G.1902 | B25: 家庭中的儿童与人格塑造(世界教育名著译丛) | C25: 40 | D25: 上海人民出版社 | E25: 3 | F25: 120
A26: 978-7-208-12097-6/G.1655 | B26: 教育漫话(世界教育名著译丛) | C26: 40 | D26: 上海人民出版社 | E26: 3 | F26: 120
A27: 978-7-208-14344-9/G.1839 | B27: 读书这么好的事 | C27: 38 | D27: 上海人民出版社 | E27: 3 | F27: 114
A28: 978-7-208-15251-9/G.1907 | B28: 读懂孩子:家庭教育十人谈 | C28: 38 | D28: 上海人民出版社 | E28: 3 | F28: 114
A29: 978-7-208-08484-1/G.1299 | B29: 名人名言录(第5版) | C29: 35 | D29: 上海人民出版社 | E29: 3 | F29: 105
A30: 978-7-208-09765-0/G.1410 | B30: 儿童的人格教育(世界教育名著译丛) | C30: 35 | D30: 上海人民出版社 | E30: 3 | F30: 105
A31: 978-7-208-10332-0/G.1475 | B31: 童年的秘密(世界教育名著译丛) | C31: 32 | D31: 上海人民出版社 | E31: 3 | F31: 96
A32: 978-7-208-10328-3/G.1474 | B32: 爱的教育(世界教育名著译丛) | C32: 32 | D32: 上海人民出版社 | E32: 3 | F32: 96
A33: 978-7-208-09745-2/G.1408 | B33: 教育漫话(世界教育名著译丛) | C33: 32 | D33: 上海人民出版社 | E33: 3 | F33: 96
A34: 978-7-208-09744-5/G.1407 | B34: 家庭和儿童教育(世界教育名著译丛) | C34: 32 | D34: 上海人民出版社 | E34: 3 | F34: 96
A35: 978-7-208-09743-8/G.1406 | B35: 爱弥儿(世界教育名著译丛) | C35: 32 | D35: 上海人民出版社 | E35: 5 | F35: 160
A36: 978-7-208-13890-2 | B36: 教育与美好生活 | C36: 48 | D36: 上海人民出版社 | E36: 3 | F36: 144
A37: 978-7-208-15828-3/K.2858 | B37: 成语里的中国通史 | C37: 158 | D37: 上海人民出版社 | E37: 码堆书（30） | F37: 4740
A38: 978-7-5476-1535-5/G.986 | B38: 冈特生态童书(第六辑) | C38: 468 | D38: 上海远东出版社 | E38: 2 | F38: =C38*E38 -> 936
A39: 978-7-5476-1595-9/G.1032 | B39: 文化里的中国 | C39: 68 | D39: 上海远东出版社 | E39: 5 | F39: =C39*E39 -> 340
A40: 978-7-5476-1318-4/G.834 | B40: 汉字里的中国—咬文嚼字精选一百篇 | C40: 45 | D40: 上海远东出版社 | E40: 5 | F40: =C40*E40 -> 225
A41: 978-7-5476-1494-5/B.14 | B41: 叶自成《老子》全解--今帛简本综合版 | C41: 49 | D41: 上海远东出版社 | E41: 5 | F41: =C41*E41 -> 245
A42: 978-7-5476-1628-4//I.350 | B42: 白乌鸦 | C42: 35 | D42: 上海远东出版社 | E42: 5 | F42: =C42*E42 -> 175
A43: 978-7-5476-1480-8/J.116 | B43: 赤色四叶草1 | C43: 29 | D43: 上海远东出版社 | E43: 5 | F43: =C43*E43 -> 145
A44: 978-7-5476-1617-8/G.1051 | B44: 成语小古文80篇 | C44: 35.8 | D44: 上海远东出版社 | E44: 6 | F44: =C44*E44 -> 214.8
A45: 978-7-5458-1635-8/B.86 | B45: 《庄子》内七篇析义 | C45: 45 | D45: 上海书店出版社 | E45: 2 | F45: =C45*E45 -> 90
A46: 978-7-5458-1658-7/I.438 | B46: 上海民谣 | C46: 36 | D46: 上海书店出版社 | E46: 2 | F46: 72
A47: 978-7-5458-1610-5/D.62 | B47: 法字从水起沧浪——历史法治故事的现代镜鉴 | C47: 35 | D47: 上海书店出版社 | E47: 2 | F47: 70
A48: 978-7-5458-1577-1/I.410 | B48: 龙隐轩：血燕盏 | C48: 35 | D48: 上海书店出版社 | E48: 2 | F48: 70
A49: 978-7-5458-1822-2/I.480 | B49: 龙隐轩：如意骨 | C49: 49 | D49: 上海书店出版社 | E49: 2 | F49: 98
A50: 978-7-5458-1678-5/F.41 | B50: 海帆远影——中国古代航海知识读本 | C50: 88 | D50: 上海书店出版社 | E50: 2 | F50: 176
A51: 978-7-5458-1608-2/K.307 | B51: 毛泽东论中国历史人物——从轩辕黄帝到孙中山 | C51: 160 | D51: 上海书店出版社 | E51: 2 | F51: 320
A52: 978-7-5458-1674-7/K.317 | B52: 从党的诞生地出发：红色基因在上海 | C52: 45 | D52: 上海书店出版社 | E52: 2 | F52: 90
A53: 978-7-5458-1692-1/J.412 | B53: 宋元画史中的博物学文化 | C53: 52 | D53: 上海书店出版社 | E53: 2 | F53: 104
A54: 978-7-5458-1662-4/J.406 | B54: 色彩造型基础——创意•构成•表现 | C54: 58 | D54: 上海书店出版社 | E54: 2 | F54: 116
A55: 978-7-5458-1309-8/I.364 | B55: 世界少年文学名著故事丛书(全十册) | C55: 98 | D55: 上海书店出版社 | E55: 2 | F55: 196
A56: 978-7-5458-0401-0/I.141 | B56: 万叶集精选 | C56: 45 | D56: 上海书店出版社 | E56: 2 | F56: 90
A57: 978-7-5458-1794-2/I.476 | B57: 万叶集选 | C57: 78 | D57: 上海书店出版社 | E57: 2 | F57: 156
A58: 978-7-5458-1800-0/K.343 | B58: 中华一万年(上下) | C58: 138 | D58: 上海书店出版社 | E58: 2 | F58: 276
A59: 978-7-5458-1925-0/H.38 | B59: 让孩子成为“演说家”--《思维演说+》教你101个有效方法 | C59: 48 | D59: 上海书店出版社 | E59: 2 | F59: 96
A60: 978-7-5458-1933-5/J.464 | B60: 康咪咪探案记1:M纹身的猫(汉英对照版) | C60: 68 | D60: 上海书店出版社 | E60: 2 | F60: 136
A61: 978-7-5458-1934-2/J.465 | B61: 康咪咪探案记2:黑天使(汉英对照版) | C61: 68 | D61: 上海书店出版社 | E61: 2 | F61: 136
A62: 978-7-5458-1936-6/I.504 | B62: 文心侠骨--金庸小说与文学 | C62: 48 | D62: 上海书店出版社 | E62: 2 | F62: 96
A63: 978-7-5458-1867-3/J.453 | B63: 人民教育家、改革先锋、最美奋斗者——于漪 | C63: 28 | D63: 上海书店出版社 | E63: 2 | F63: 56
A64: 978-7-5458-1878-9/J.459 | B64: 改革先锋、时代楷模、最美奋斗者——邹碧华 | C64: 28 | D64: 上海书店出版社 | E64: 2 | F64: 56
A65: 978-7-5458-1865-9/J.451 | B65: 时代楷模、最美奋斗者——王逸平 | C65: 28 | D65: 上海书店出版社 | E65: 2 | F65: 56
A66: 978-7-5458-1862-8/J.449 | B66: 时代楷模、最美奋斗者——钟扬 | C66: 28 | D66: 上海书店出版社 | E66: 2 | F66: 56
A67: 978-7-5458-1861-1/J.457 | B67: 改革先锋、最美奋斗者——包起帆 | C67: 28 | D67: 上海书店出版社 | E67: 2 | F67: 56
A68: 978-7-5458-1877-2/J.458 | B68: 改革先锋——姚明 | C68: 28 | D68: 上海书店出版社 | E68: 2 | F68: 56
A69: 978-7-5458-1864-2/J.450 | B69: 最美医生——夏强 | C69: 28 | D69: 上海书店出版社 | E69: 2 | F69: 56
A70: 978-7-5458-1866-6/J.452 | B70: 改革先锋——许立荣 | C70: 28 | D70: 上海书店出版社 | E70: 2 | F70: 56
A71: 978-7-5458-1860-4/J.456 | B71: 改革先锋、最美奋斗者——谢晋 | C71: 28 | D71: 上海书店出版社 | E71: 2 | F71: 56
A72: 978-7-5458-1840-6/J.448 | B72: 时代楷模——汤庆福 | C72: 28 | D72: 上海书店出版社 | E72: 2 | F72: 56
A73: 978-7-5486-1348-0/I.192 | B73: 唐诗简史 | C73: 58 | D73: 学林出版社 | E73: 5 | F73: =C73*E73 -> 290
A74: 978-7-5486-1500-2/I.210 | B74: 宋词简史 | C74: 68 | D74: 学林出版社 | E74: 5 | F74: =C74*E74 -> 340
A75: 9787208131590 | B75: 霍比特人（萌趣版） | C75: 189 | D75: 北京世纪文景文化传播公司 | E75: 3 | F75: 567
A76: 9787208113039 | B76: 魔戒 | C76: 179 | D76: 北京世纪文景文化传播公司 | E76: 3 | F76: 537
A77: 9787208137455 | B77: 追风筝的人（珍藏纪念版） | C77: 158 | D77: 北京世纪文景文化传播公司 | E77: 3 | F77: 474
A78: 9787208121652 | B78: 魔戒：插图本 | C78: 149 | D78: 北京世纪文景文化传播公司 | E78: 3 | F78: 447
A79: BI1457-A:1:1 | B79: 圣诞老爸的幸福礼物（套装.共两册） | C79: 148 | D79: 北京世纪文景文化传播公司 | E79: 3 | F79: 444
A80: 9787208148710 | B80: 演化的故事 : 40亿年生命之旅 | C80: 108 | D80: 北京世纪文景文化传播公司 | E80: 5 | F80: 540
A81: 9787208136595 | B81: 顾颉刚讲国史 | C81: 108 | D81: 北京世纪文景文化传播公司 | E81: 3 | F81: 324
A82: 9787208125117 | B82: 精灵宝钻：精装插图本 | C82: 89 | D82: 北京世纪文景文化传播公司 | E82: 3 | F82: 267
A83: 9787208137196 | B83: 努门诺尔与中洲之未完的传说 | C83: 89 | D83: 北京世纪文景文化传播公司 | E83: 3 | F83: 267
A84: 9787208151840 | B84: 追风筝的人（中英双语版） | C84: 89 | D84: 北京世纪文景文化传播公司 | E84: 3 | F84: 267
A85: 9787208130555 | B85: 纸上中洲：艾伦·李的《魔戒》素描集 | C85: 89 | D85: 北京世纪文景文化传播公司 | E85: 3 | F85: 267
A86: 9787208126596 | B86: 圣诞老爸的来信 | C86: 79 | D86: 北京世纪文景文化传播公司 | E86: 3 | F86: 237
A87: 9787208118546 | B87: 漫画霍比特人 | C87: 78 | D87: 北京世纪文景文化传播公司 | E87: 3 | F87: 234
A88: 9787208144866 | B88: 胡林的子女 | C88: 69.8 | D88: 北京世纪文景文化传播公司 | E88: 2 | F88: 139.6
A89: 9787208144828 | B89: 贝伦与露西恩：精装插图本 | C89: 69.8 | D89: 北京世纪文景文化传播公司 | E89: 2 | F89: 139.6
A90: 9787208111103 | B90: 霍比特人：精装插图本 | C90: 69.8 | D90: 北京世纪文景文化传播公司 | E90: 2 | F90: 139.6
A91: 9787208138865 | B91: 京极夏彦画文集 | C91: 69 | D91: 北京世纪文景文化传播公司 | E91: 3 | F91: 207
A92: 9787208148185 | B92: 日本画记 | C92: 69 | D92: 北京世纪文景文化传播公司 | E92: 3 | F92: 207
A93: 9787208139756 | B93: 山山水水聊聊画画 | C93: 65 | D93: 北京世纪文景文化传播公司 | E93: 2 | F93: 130
A94: 9787208148314 | B94: 南北战争三百年：中国4—6世纪的军事与政权 | C94: 59 | D94: 北京世纪文景文化传播公司 | E94: 2 | F94: 118
A95: 9787208131583 | B95: 大鼻子情圣的故事 | C95: 59 | D95: 北京世纪文景文化传播公司 | E95: 3 | F95: 177
A96: 9787208137820 | B96: 安提戈涅的故事 | C96: 59 | D96: 北京世纪文景文化传播公司 | E96: 3 | F96: 177
A97: 9787208137813 | B97: 尼摩船长的故事 06 | C97: 59 | D97: 北京世纪文景文化传播公司 | E97: 3 | F97: 177
A98: 9787208127630 | B98: 李尔王的故事 | C98: 59 | D98: 北京世纪文景文化传播公司 | E98: 3 | F98: 177
A99: 9787208137790 | B99: 约婚夫妇的故事（新） | C99: 59 | D99: 北京世纪文景文化传播公司 | E99: 3 | F99: 177
A100: 9787208152465 | B100: 巴黎画记 | C100: 59 | D100: 北京世纪文景文化传播公司 | E100: 3 | F100: 177
A101: 9787208118133 | B101: 伊索寓言 | C101: 59 | D101: 北京世纪文景文化传播公司 | E101: 5 | F101: 295
A102: 9787208151789 | B102: 高山上的小邮局 | C102: 49 | D102: 北京世纪文景文化传播公司 | E102: 10 | F102: 1470
A103: 9787208137783 | B103: 吉尔伽美什的故事 08 | C103: 49 | D103: 北京世纪文景文化传播公司 | E103: 3 | F103: 147
A104: 9787208127647 | B104: 唐璜的故事 | C104: 49 | D104: 北京世纪文景文化传播公司 | E104: 3 | F104: 147
A105: 9787208127654 | B105: 罪与罚的故事 | C105: 49 | D105: 北京世纪文景文化传播公司 | E105: 3 | F105: 147
A106: 9787208131576 | B106: 鼻子的故事 | C106: 49 | D106: 北京世纪文景文化传播公司 | E106: 3 | F106: 147
A107: 9787208137806 | B107: 格列佛的故事 | C107: 49 | D107: 北京世纪文景文化传播公司 | E107: 3 | F107: 147
A108: 9787208089884 | B108: 纯真博物馆 | C108: 45 | D108: 北京世纪文景文化传播公司 | E108: 3 | F108: 135
A109: 9787208077928 | B109: 姑获鸟之夏 | C109: 45 | D109: 北京世纪文景文化传播公司 | E109: 3 | F109: 135
A110: 9787208128156 | B110: 西线无战事 | C110: 45 | D110: 北京世纪文景文化传播公司 | E110: 3 | F110: 135
A111: 9787208148192 | B111: 波士顿画记 | C111: 45 | D111: 北京世纪文景文化传播公司 | E111: 3 | F111: 135
A112: 9787208144163 | B112: 有顶天家族. 二代目的归期 | C112: 45 | D112: 北京世纪文景文化传播公司 | E112: 3 | F112: 135
A113: 9787208147492 | B113: 平成猿蟹合战图 | C113: 45 | D113: 北京世纪文景文化传播公司 | E113: 3 | F113: 135
A114: 9787208147119 | B114: 噬梦人 | C114: 45 | D114: 北京世纪文景文化传播公司 | E114: 3 | F114: 135
A115: 9787208149960 | B115: 霍比特人：电影书衣本 | C115: 42 | D115: 北京世纪文景文化传播公司 | E115: 3 | F115: 126
A116: 9787208119468 | B116: 霍比特人（经典书衣版） | C116: 42 | D116: 北京世纪文景文化传播公司 | E116: 3 | F116: 126
A117: 9787208143760 | B117: 有顶天家族 | C117: 42 | D117: 北京世纪文景文化传播公司 | E117: 3 | F117: 126
A118: 9787208061644 | B118: 追风筝的人 | C118: 36 | D118: 北京世纪文景文化传播公司 | E118: 5 | F118: 180
A119: 9787208156906 | B119: 旧金山画记 | C119: 62 | D119: 北京世纪文景文化传播公司 | E119: 5 | F119: =C119*E119 -> 310
A120: 9787208156456 | B120: 海的祈祷 | C120: 56 | D120: 北京世纪文景文化传播公司 | E120: 5 | F120: 280
A121: 9787208157552 | B121: 孔子大历史 | C121: 59 | D121: 北京世纪文景文化传播公司 | E121: 5 | F121: 295
A122: 9787208159051 | B122: 故事药丸 | C122: 75 | D122: 北京世纪文景文化传播公司 | E122: 5 | F122: 375
A123: 9787208158221 | B123: 中洲旅人:从袋底洞到魔多--约翰·豪的中洲素描集 | C123: 108 | D123: 北京世纪文景文化传播公司 | E123: 5 | F123: 540
A124: 9787208158214 | B124: 神话与魔法:约翰·豪的绘画艺术 | C124: 99 | D124: 北京世纪文景文化传播公司 | E124: 5 | F124: =C124*E124 -> 495
A125: 9787208159839 | B125: 蝉 | C125: 49 | D125: 北京世纪文景文化传播公司 | E125: 5 | F125: 245
A126: 978-7-208-16143-6/I.1856 | B126: 灯花 | C126: 56 | D126: 北京世纪文景文化传播公司 | E126: 3 | F126: 168
A127: 978-7-208-16145-0/I.1858 | B127: 九兄弟斗土司 | C127: 55 | D127: 北京世纪文景文化传播公司 | E127: 3 | F127: 165
A128: 978-7-208-16142-9/I.1855 | B128: 龙牙颗颗钉满天 | C128: 68 | D128: 北京世纪文景文化传播公司 | E128: 3 | F128: 204
A129: 978-7-208-16144-3/I.1857 | B129: 猎人海力布 | C129: 65 | D129: 北京世纪文景文化传播公司 | E129: 3 | F129: 195
A130: 978-7-208-15905-1/I.1827 | B130: 故事药丸 | C130: 75 | D130: 北京世纪文景文化传播公司 | E130: 3 | F130: 225
A131: 978-7-208-16272-3/I.1868 | B131: 刚多林的陷落:精装插图本 | C131: 79 | D131: 北京世纪文景文化传播公司 | E131: 3 | F131: 237
A132: 978-7-5432-2910-5/B.34 | B132: “学霸”养成记(少儿心理健康教育漫画系列丛书) | C132: 35 | D132: 格致出版社 | E132: 3 | F132: =C132*E132 -> 105
A133: 978-7-5432-2911-2/B.35 | B133: 来来的心情日记(少儿心理健康教育漫画系列丛书) | C133: 35 | D133: 格致出版社 | E133: 3 | F133: =C133*E133 -> 105
A134: 978-7-5432-2922-8/B.37 | B134: 来来的幸福人生(少儿心理健康教育漫画系列丛书) | C134: 35 | D134: 格致出版社 | E134: 3 | F134: =C134*E134 -> 105
A135: 978-7-5432-2921-1/B.36 | B135: 来来的未来(少儿心理健康教育漫画系列丛书) | C135: 35 | D135: 格致出版社 | E135: 3 | F135: =C135*E135 -> 105
A136: 978-7-5432-3021-7/F.1234 | B136: 爱、金钱和孩子:育儿经济学 | C136: 65 | D136: 格致出版社 | E136: 3 | F136: =C136*E136 -> 195
